Body,Body Name,Service Label,Service Code,Expenditure Category,Expenditure Code,Narrative,Date,Transaction Number,Amount,Capital/Revenue/Precept,Supplier Name,Supplier ID
32UB,Boston Borough Council,Personnel & Payroll,1006,Professional Services,3301,PAYROLL SERVICES 01.04.21-31.03.22,11/03/2022,229236,20311.21,Revenue,North Kesteven District Council,814
32UB,Boston Borough Council,Central Training & Recruitment,2001,Central Training & Recruitment,1107,HOUSING HEALTH AND SAFETY RATING SYSTEM,31/03/2022,230692,650,Revenue,Derby City Council,2414
32UB,Boston Borough Council,Test And Trace Scheme,1016,Contract Change Notice (Psps),3327,BBC TO FUND ADDITIONAL RESOURCE,29/03/2022,231018,47000,Revenue,Public Sector Partnership Services Ltd,16086
32UB,Boston Borough Council,Building Mtc-Public Buildings,4402,Materials,3006,FIRE ALARM MAINTENANCE-12 MTHS 01.12.21,25/03/2022,231347,549.8,Revenue,Secure One Limited,571
32UB,Boston Borough Council,Building Mtc-Public Buildings,4402,Materials,3006,WORKS AS PER QUOTATION,18/03/2022,231357,1047.16,Revenue,Adcock Refrigeration & Air Conditioning Ltd,1682
32UB,Boston Borough Council,Vehicle Holding Account,2206,Provisions / Purchases,3008,HIRE OF PN13 NPU NOV 21 FOUR WEEKS ,04/03/2022,231757,720,Revenue,Phil Haines Coaches Ltd,351
32UB,Boston Borough Council,Finance,1502,Professional Services,3301,BBC/PSPS CONTRACT PRICE JAN 22,18/03/2022,231916,238097.42,Revenue,Public Sector Partnership Services Ltd,16086
32UB,Boston Borough Council,Bereavement,2401,Subscriptions,3600,MEMBERSHIP SUBSCRIPTION FEES 2022,31/03/2022,232197,1045,Revenue,Federation Of Burial & Cremation Authorities,1853
32UB,Boston Borough Council,Non Distributed Costs,3502,Superann Pension Incrs Act,1007,PENSION ADDED YEARS - JAN 22,04/03/2022,232287,5694.37,Revenue,Lincolnshire County Council Pension Fund,220
32UB,Boston Borough Council,Street Cleansing Service,3235,Enforcement Partners,3041,FIXED PENALTY NOTICE CHARGE SITE 12033,18/03/2022,232383,6555,Revenue,La Support Limited,14578
32UB,Boston Borough Council,"Food, Health & Safety Enforce",3220,Laboratory Charges,3912,"GEN FOOD, WATER & ENVIRONMENTAL TEST",11/03/2022,232403,573.03,Revenue,Uk Health Security Agency,6486
32UB,Boston Borough Council,Corporate & Democratic Core,3102,External Audit Fees,3504,EXTERNAL AUDIT 21-22 INSTALLMENT 2,04/03/2022,232525,8490,Revenue,Mazars Llp,13918
32UB,Boston Borough Council,Blg Control (Fee Earning),3201,Software Maintenance,3408,PLAN SUPPORT 29/3/22-28/3/23,25/03/2022,232531,695,Revenue,Resolution Data Management Limited,9281
32UB,Boston Borough Council,Building Mtc-Public Buildings,4402,Materials,3006,GUILDHALL 12MTHS FROM 31.01.22,11/03/2022,232532,984,Revenue,Gb Security Group,109
32UB,Boston Borough Council,Building Mtc-Public Buildings,4402,Materials,3006,INVESTIGATE/RECTIFY GAS BOILER,11/03/2022,232566,677,Revenue,Glen Farrow Uk Ltd,12204
32UB,Boston Borough Council,Building Mtc-Public Buildings,4402,Materials,3006,GAS BOILER-CEMETERY LODGE,11/03/2022,232569,286,Revenue,Glen Farrow Uk Ltd,12204
32UB,Boston Borough Council,Building Mtc-Public Buildings,4402,Materials,3006,ISSUES AIR HANDLING UNITS - GMLP,11/03/2022,232570,474.33,Revenue,Glen Farrow Uk Ltd,12204
32UB,Boston Borough Council,Corporate & Democratic Core,3102,Subscriptions,3600,ADA MEMBERSHIP 2021,04/03/2022,232587,341,Revenue,Association Of Drainage Authorities,125
32UB,Boston Borough Council,Carbon Reduction,3518,Project Costs,3935,BSU1512-SERVICE-PRODUCTION OF CARBON REDUCTION PLAN,18/03/2022,232598,18175,Revenue,Carbon Trust Advisory Limited,16629
32UB,Boston Borough Council,Building Mtc-Public Buildings,4402,Materials,3006,RENTAL/MAINTENANCE INTRUDER ALARM 15.02.,18/03/2022,232604,2096.84,Revenue,Adt Fire And Security Plc,2
32UB,Boston Borough Council,It Investment Programme,6201,Purchases,8005,WS-C2960X-48FPD-L - REFURB(WITHOUT BRACKETS),04/03/2022,232684,1950,Capital,One Source It Ltd,13746
32UB,Boston Borough Council,It Investment Programme,6201,Purchases,8005,WS-C3850-48P-S,04/03/2022,232684,2450,Capital,One Source It Ltd,13746
32UB,Boston Borough Council,It Investment Programme,6201,Purchases,8005,WS-C2960X-48FPD-L - REFURB,04/03/2022,232685,2650,Capital,One Source It Ltd,13746
32UB,Boston Borough Council,Computer Costs,1503,Software Licences,3407,CSP SUBSCRIPTION,25/03/2022,232687,351.57,Revenue,Phoenix Software Ltd,644
32UB,Boston Borough Council,Computer Costs,1503,Software Licences,3407,AZURE ACTIVE DIRECTORY PREMIUM P1 ? BILLED MONTHLY,25/03/2022,232687,1480.96,Revenue,Phoenix Software Ltd,644
32UB,Boston Borough Council,Welcome Back Fund,3248,Equipment Purchase,3001,PAINT,18/03/2022,232689,1048.24,Revenue,Crown Paints Limited,5115
32UB,Boston Borough Council,Building Mtc-Public Buildings,4402,Materials,3006,STREET LIGHTING MAINTENANCE Q/E 31.12.21,18/03/2022,232690,3000,Revenue,Eon Uk Energy Services,8014
32UB,Boston Borough Council,Building Mtc-Public Buildings,4402,Materials,3006,MAINTENANCE WORK - BARGATE GREEN C.P,11/03/2022,232698,561.8,Revenue,C G Godfrey Ltd,6040
32UB,Boston Borough Council,Office Cleaning,3203,Cleaning Materials,2080,"067382 PRISTINE C FOLD HAND TOWEL BLUE 1PLY (CS 4,608)",04/03/2022,232703,274.7,Revenue,Bunzl Cleaning & Hygiene Supplies,323
32UB,Boston Borough Council,Building Mtc-Public Buildings,4402,Materials,3006,SERVICE SAUNA STEAM SPA AT GMLP,11/03/2022,232706,460,Revenue,Saunatec,786
32UB,Boston Borough Council,Vehicle Holding Account,2206,Chris Sellars Payg,3045,FX65 BZG FLEET NO. VF72 - WINTER SERVICE - RE,11/03/2022,232713,3042.18,Revenue,Chris Sellars Groundcare Ltd,6627
32UB,Boston Borough Council,Building Mtc-Public Buildings,4402,Materials,3006,ALARM MAINTENANCE & MONITOR 18/6/21-17/6/22,25/03/2022,232754,864.5,Revenue,Secure One Limited,571
32UB,Boston Borough Council,Building Mtc-Public Buildings,4402,Materials,3006,ANNUAL TVC WATER TESTING,25/03/2022,232820,371.93,Revenue,Integrated Water Services Ltd,11294
32UB,Boston Borough Council,Building Mtc-Public Buildings,4402,Materials,3006,MUNICIPAL BUILDINGS SURVEY UPDATE,11/03/2022,232822,330,Revenue,Bda Surveying Ltd,14029
32UB,Boston Borough Council,Building Mtc-Public Buildings,4402,Materials,3006,"SURVEY UPDATES REDSTONE, GMLC, ETC",11/03/2022,232823,3125,Revenue,Bda Surveying Ltd,14029
32UB,Boston Borough Council,Selcp,1017,Professional Services,3301,MEMORANDUM OF UNDERSTANDING,11/03/2022,232833,4120,Revenue,Chattertons Solicitors,16709
32UB,Boston Borough Council,Dog Collection,3219,Kennelling And Vet Fees,3909,SEPT 21-JAN 22 KENNELING FEES,11/03/2022,232841,924,Revenue,Rookery Kennels,10593
32UB,Boston Borough Council,Legal Services,1402,Professional Services,3301,PROFESSIONAL FEES 27.04.21-14.07.21,04/03/2022,232842,5298.5,Revenue,Eversheds Llp,5010
32UB,Boston Borough Council,Recycling,3238,Printing And Stationery,3201,GARDEN WASTE BIN STICKERS,18/03/2022,232853,350,Revenue,The Boston Sign Company,13085
32UB,Boston Borough Council,Street Cleansing Service,3235,Provisions / Purchases,3008,RECYCLING BRING SITE,18/03/2022,232857,1102,Revenue,The Boston Sign Company,13085
32UB,Boston Borough Council,Grounds Maintenance,4401,Sponsorship Income,379,ROLEC ROUNDABOUT SIGNS,18/03/2022,232858,390,Revenue,The Boston Sign Company,13085
32UB,Boston Borough Council,Central Purchasing,1010,Corporate Publications,3202,DIGITAL PRINT PARK SIGNS,18/03/2022,232859,265.7,Revenue,The Boston Sign Company,13085
32UB,Boston Borough Council,Recycling,3238,Printing And Stationery,3201,GARDEN WASTE LABELS,18/03/2022,232860,336,Revenue,The Boston Sign Company,13085
32UB,Boston Borough Council,Commercial Waste,3237,Printing And Stationery,3201,DRY PAPER/CARDBOARD ONLY STICKERS,18/03/2022,232870,408.48,Revenue,The Boston Sign Company,13085
32UB,Boston Borough Council,Port Health,3214,Subscriptions,3600,APHA MEMBERSHIP RENEWAL 2022/2023,04/03/2022,232919,392.04,Revenue,Association Of Port Health Authorities,1075
32UB,Boston Borough Council,Bereavement,2401,Memorials Purchases,3028,GRANITE ASH VAULTS SUPPLIED TO BOSTON CREMATOR,04/03/2022,232926,4560,Revenue,Granart Memorials,6592
32UB,Boston Borough Council,Building Mtc-Public Buildings,4402,Materials,3006,JAN22 AIR CONDITIONING PETE HUNNS OFFICE,04/03/2022,232931,601,Revenue,Adcock Refrigeration & Air Conditioning Ltd,1682
32UB,Boston Borough Council,Planning Policy,3304,Software Licences,3407,ANNUAL MAINTENANCE FOR MAPINFO PRO SOFTWARE,04/03/2022,232937,2100,Revenue,Mapchester Ltd,17408
32UB,Boston Borough Council,Development Management,3306,Agency Staff,1032,TOWN PLAN. CONSULT. 3/1/22-28/1/22,11/03/2022,232942,4028,Revenue,Gd Planning,16774
32UB,Boston Borough Council,Computer Costs,1503,Software Maintenance,3408,"EXPRESS ANNUAL FEE, ALDM MAINTENANCE",11/03/2022,232943,10753.75,Revenue,Civica Uk Ltd,124
32UB,Boston Borough Council,Hsg Strategy Research & Policy,3240,Software Support,3422,TRAINING/APP SUPPORT 01.04.22-31.03.23,11/03/2022,232944,15208.73,Revenue,Civica Uk Ltd,124
32UB,Boston Borough Council,Building Mtc-Public Buildings,4402,Materials,3006,14/2/22 AIR CON. RECEPTION PUMP REPLACE,11/03/2022,232945,390,Revenue,Adcock Refrigeration & Air Conditioning Ltd,1682
32UB,Boston Borough Council,Refuse Collection,3234,Agency Staff,1032,TEMP. STAFF W/E 13.02.22,18/03/2022,232947,4366.48,Revenue,Comensura Ltd,9671
32UB,Boston Borough Council,Grounds Maintenance,4401,Agency Staff,1032,TEMP. STAFF W/E 13.02.22,18/03/2022,232947,964.61,Revenue,Comensura Ltd,9671
32UB,Boston Borough Council,Building Mtc-Public Buildings,4402,Materials,3006,ANNUALWATER TESTS MULTIPLE SITES,25/03/2022,232949,663.87,Revenue,Integrated Water Services Ltd,11294
32UB,Boston Borough Council,Building Mtc-Public Buildings,4402,Materials,3006,MAINTENANCE & MONITORING 15/3/22-14/3/23,04/03/2022,232950,492,Revenue,Alarmline Security Ltd,5
32UB,Boston Borough Council,Elections,3103,Equipment Purchase,3001,"HAND ILLUMINATED SCROLL 22X5.5""",18/03/2022,232961,1515.95,Revenue,Shaw & Sons Limited,90
32UB,Boston Borough Council,Leisure Pool Services,3434,Biomass Fuel,2093,LEI2291-SERVICE-WOODCHIP DELIVERIES FOR GMLC,18/03/2022,232962,1200,Revenue,Sdl Biomass Ltd,15677
32UB,Boston Borough Council,Princess Royal Sports Arena,3452,Biomass Fuel,2093,LEI2292-SERVICE-WOODCHIP DELIVERIES FOR PRSA,18/03/2022,232962,1182,Revenue,Sdl Biomass Ltd,15677
32UB,Boston Borough Council,Refuse Collection,3234,Agency Staff,1032,TEMP. STAFF W/E 20.02.22,18/03/2022,232963,3969.87,Revenue,Comensura Ltd,9671
32UB,Boston Borough Council,Grounds Maintenance,4401,Agency Staff,1032,TEMP. STAFF W/E 20.02.22,18/03/2022,232963,1032.72,Revenue,Comensura Ltd,9671
32UB,Boston Borough Council,Computer Costs,1503,Software Licences,3407,#NAME?,18/03/2022,232968,11535.96,Revenue,Alfresco Software Ltd,11611
32UB,Boston Borough Council,Vehicle Holding Account,2206,Sfs Payg,3043,INSPECTION/REPLACE FRONT BRAKE PADS/FIT REAR YS18 CZD,18/03/2022,232972,563.27,Revenue,Specialist Fleet Services Ltd,16163
32UB,Boston Borough Council,Vehicle Holding Account,2206,Sfs Payg,3043,SERVICE/MOT - YR16 OFJ ,18/03/2022,232973,325,Revenue,Specialist Fleet Services Ltd,16163
32UB,Boston Borough Council,Vehicle Holding Account,2206,Sfs Fixed Maintenance,3042,BRUSH REPLACE GK20 UYN,18/03/2022,232974,469.51,Revenue,Specialist Fleet Services Ltd,16163
32UB,Boston Borough Council,Vehicle Holding Account,2206,Sfs Fixed Maintenance,3042,REAR TOP EXTENSION PANEL REPLACE VK70 XZY,18/03/2022,232984,325,Revenue,Specialist Fleet Services Ltd,16163
32UB,Boston Borough Council,Building Mtc-Public Buildings,4402,Materials,3006,FIRE ALARM ENGINEER VISIT,18/03/2022,233061,1204.66,Revenue,Chubb Fire & Security Limited,447
32UB,Boston Borough Council,Building Mtc-Public Buildings,4402,Materials,3006,FIRE ALARM SERVICE,18/03/2022,233062,501.69,Revenue,Chubb Fire & Security Limited,447
32UB,Boston Borough Council,Building Mtc-Public Buildings,4402,Materials,3006,AIR CON REPLACE 2ND FLOOR,18/03/2022,233064,2040,Revenue,Adcock Refrigeration & Air Conditioning Ltd,1682
32UB,Boston Borough Council,Building Mtc-Public Buildings,4402,Materials,3006,REPLACE AIR CON 2ND FLOOR S1,18/03/2022,233065,2096,Revenue,Adcock Refrigeration & Air Conditioning Ltd,1682
32UB,Boston Borough Council,Leisure Pool Services,3434,Plant Maintenance,2012,FEED SYSTEM FAULT ENGINEER VISIT,04/03/2022,233066,480,Revenue,Nerg,13707
32UB,Boston Borough Council,Building Mtc-Public Buildings,4402,Materials,3006,ADVICE & SURVEYS FOR BUILDINGS,25/03/2022,233067,1000,Revenue,Bda Surveying Ltd,14029
32UB,Boston Borough Council,Municipal Buildings,2404,Water Rates,2050,10.11.21-09.02.22 MUNICIPAL BUILDINGS,11/03/2022,233068,802.29,Revenue,Wave,13339
32UB,Boston Borough Council,Leisure Pool Services,3434,Water Rates,2050,27.01.22-26.02.22 ROWLEY ROAD,04/03/2022,233069,842.28,Revenue,Wave,13339
32UB,Boston Borough Council,Vehicle Holding Account,2206,Sfs Payg,3043,HIRE OF VN63 UCM DENNIS ELITE W/C 14/02/22,25/03/2022,233070,665,Revenue,Euro Municipal Ltd,13250
32UB,Boston Borough Council,Vehicle Holding Account,2206,Sfs Payg,3043,HIRE OF VN63 UCM DENNIS ELITE W/C 21/02/22,25/03/2022,233070,850,Revenue,Euro Municipal Ltd,13250
32UB,Boston Borough Council,Community Safety,3205,P'Ship Pay & Conts To Schemes,3601,ASB COORDINATOR CONTRIBUTION 2021/22,18/03/2022,233071,1650,Revenue,Lincolnshire County Council,12322
32UB,Boston Borough Council,Community Safety,3205,P'Ship Pay & Conts To Schemes,3601,DOMESTIC HOMICIDE REVIEW CONT 21/22,18/03/2022,233072,550,Revenue,Lincolnshire County Council,12322
32UB,Boston Borough Council,Community Safety,3205,Software Licences,3407,ECINS CONTRIBUTION 21/22,18/03/2022,233073,4750,Revenue,Lincolnshire County Council,12322
32UB,Boston Borough Council,It Investment Programme,6201,Purchases,8005,GOSS INTERACTIVE WORK,04/03/2022,233075,5800,Capital,Public Sector Partnership Services Ltd,16086
32UB,Boston Borough Council,Finance,1502,Professional Services,3301,CONTRACT PRICE 2021-22 CREDIT,18/03/2022,233076,-207909,Revenue,Public Sector Partnership Services Ltd,16086
32UB,Boston Borough Council,Finance,1502,Professional Services,3301,CONTRACT PRICE FEB 22,25/03/2022,233077,238097.42,Revenue,Public Sector Partnership Services Ltd,16086
32UB,Boston Borough Council,Commercial Waste,3237,Disposal Costs,4616,COMMERCIAL TONNAGE OCT 21-DEC 21,18/03/2022,233078,33541.35,Revenue,Lincolnshire County Council,12322
32UB,Boston Borough Council,Street Cleansing Service,3235,Specialist Services,4602,COLLECTION OF SHARPS WASTE 1100LTR BIN 03/22,31/03/2022,233083,500,Revenue,Healthguard Ltd,3406
32UB,Boston Borough Council,Photocopiers,2503,Plant Maintenance,2012,MONO & COLOUR PRINTS 04.09.21-04.12.21,18/03/2022,233090,1879.25,Revenue,Capita Software Services Limited,121
32UB,Boston Borough Council,Credit Control Unit,1013,Transaction Costs,4701,POST OFFICE&PAYPOINT CHARGES JAN22,25/03/2022,233091,1300.68,Revenue,Capita Software Services Limited,121
32UB,Boston Borough Council,Non Distributed Costs,3502,Superann Pension Incrs Act,1007,PENSION RECHARGES FEB 22,18/03/2022,233092,5608.72,Revenue,Lincolnshire County Council Pension Fund,220
32UB,Boston Borough Council,Elections,3103,Postages,3405,9/1/22-3/2/22 BUSINESS MAIL UNSORTED,04/03/2022,233093,474.37,Revenue,Royal Mail,86
32UB,Boston Borough Council,Development Management,3306,Advertising,3203,PLANNER ONLINE 01.11.21,11/03/2022,233098,995,Revenue,Redactive Publishing Limited,8954
32UB,Boston Borough Council,Registration Of Electors,3109,Postages,3405,ANNUAL MAINTENANCE 30/3/22-29/3/23,18/03/2022,233105,413.67,Revenue,Twofold Mailing Limited,12176
32UB,Boston Borough Council,Development Management,3306,Agency Staff,1032,DM SERVICES CHARGES 1/1/22-31/1/22,04/03/2022,233106,6750,Revenue,Capita Property & Infrastructure Ltd,13782
32UB,Boston Borough Council,Building Mtc-Public Buildings,4402,Materials,3006,"BOILER, RADIATOR CALL OUT 22/2/22",18/03/2022,233107,286.65,Revenue,Glen Farrow Uk Ltd,12204
32UB,Boston Borough Council,It Investment Programme,6201,Purchases,8005,SAMSUNG XCOVER,04/03/2022,233108,494,Capital,Vodafone Limited (Corporate),667
32UB,Boston Borough Council,Vehicle Holding Account,2206,Chris Sellars Payg,3045,AE18 EHV FLEET NO. VF83 SERVICE AND REPLACEMENT,25/03/2022,233109,886.46,Revenue,Chris Sellars Groundcare Ltd,6627
32UB,Boston Borough Council,Vehicle Holding Account,2206,Chris Sellars Payg,3045,AE18 EHV FLEET NO. VF83  SERVICE AND REPLACEMENT,25/03/2022,233109,940,Revenue,Chris Sellars Groundcare Ltd,6627
32UB,Boston Borough Council,Computer Costs,1503,Hardware Maintenance,3410,"DELL-E2422HS 24"" MONITOR",25/03/2022,233110,1691.91,Revenue,Phoenix Software Ltd,644
32UB,Boston Borough Council,Refuse Collection,3234,Agency Staff,1032,TEMP/STAFF W/E 27.02.22,18/03/2022,233113,4517.91,Revenue,Comensura Ltd,9671
32UB,Boston Borough Council,Grounds Maintenance,4401,Agency Staff,1032,TEMP/STAFF W/E 27.02.22,18/03/2022,233113,743,Revenue,Comensura Ltd,9671
32UB,Boston Borough Council,Civic Functions,3101,Civic Ceremonies,3502,STERLING SILVER CEDAR LINED CASKET,25/03/2022,233114,3187.5,Revenue,S T Hopper (Boston) Ltd,1709
32UB,Boston Borough Council,Office Cleaning,3203,Agency Staff,1032,CLEANER,18/03/2022,233118,359.7,Revenue,Workforce (Boston) Limited,11042
32UB,Boston Borough Council,Bereavement,2401,Medical Assessors Fees,3302,MEDICAL DUTIES FEB 22,04/03/2022,233120,1498.5,Revenue,Dr Andrew Doddrell,10098
32UB,Boston Borough Council,Bed & Breakfast,3222,Fees And Charges,315,HBOP 8676766,11/03/2022,233130,360.4,Revenue,Boston Borough Council,1433
32UB,Boston Borough Council,Bed & Breakfast,3222,Fees And Charges,315,HBOP 8678227,11/03/2022,233131,298.66,Revenue,Boston Borough Council,1433
32UB,Boston Borough Council,Bed & Breakfast,3222,Fees And Charges,315,HBOP 8671923,11/03/2022,233133,314.26,Revenue,Boston Borough Council,1433
32UB,Boston Borough Council,Bed & Breakfast,3222,Fees And Charges,315,HBOP 8671884,11/03/2022,233134,656.98,Revenue,Boston Borough Council,1433
32UB,Boston Borough Council,Building Mtc-Public Buildings,4402,Materials,3006,HEAT EXCHANGE FILTER UNBLOCK,18/03/2022,233141,560,Revenue,Glen Farrow Uk Ltd,12204
32UB,Boston Borough Council,"Food, Health & Safety Enforce",3220,Equipment Purchase,3001,1NB-00002 MICROSOFT SURFACE PRO 7+ FOR BUSINESS,11/03/2022,233148,1150.95,Revenue,Spectrum,17214
32UB,Boston Borough Council,Leadership Team,1001,Equipment Purchase,3001,1NB-00002 MICROSOFT SURFACE PRO 7+ FOR BUSINESS,11/03/2022,233149,1150.95,Revenue,Spectrum,17214
32UB,Boston Borough Council,Computer Costs,1503,Software Maintenance,3408,AGILE APPLICATIONS  ANNUAL RENEWAL OF PRODUCT SOFTWARE/LICENCES 22/23,25/03/2022,233150,23630,Revenue,Agile Applications Limited,9882
32UB,Boston Borough Council,Computer Costs,1503,Software Licences,3407,MICROSOFT 12/2-11/3/22 AZURE 7/2/-6/3/22,25/03/2022,233151,355.73,Revenue,Phoenix Software Ltd,644
32UB,Boston Borough Council,Computer Costs,1503,Software Licences,3407,AZURE ACTIVE DIRECTORY PREMIUM P1 ? BILLED MONTHLY,25/03/2022,233151,1476.8,Revenue,Phoenix Software Ltd,644
32UB,Boston Borough Council,Computer Costs,1503,Software Licences,3407,YEAR 1 - MICROSOFT ENTERPRISE AGREEMENT AS PER ATTACHED,25/03/2022,233152,44141.36,Revenue,Phoenix Software Ltd,644
32UB,Boston Borough Council,Dog Collection,3219,Professional Services,3301,STRAY DOG COLLECTION SERVICE,11/03/2022,233210,1120.83,Revenue,Pestinator Uk Ltd,13043
32UB,Boston Borough Council,Welcome Back Fund,3248,Professional Services,3301,PROVISION OF A FOOTFALL AND DATA MANAGEMENT,11/03/2022,233211,15000,Revenue,Huq Industries Limited,17434
32UB,Boston Borough Council,Leisure Pool Services,3434,Provisions / Purchases,3008,DRINKS,11/03/2022,233214,933.75,Revenue,Nvcs Ltd,251
32UB,Boston Borough Council,Elections,3103,Postages,3405,28.11.21 - 23.12.21 POST CHARGES,18/03/2022,233217,331.98,Revenue,Royal Mail,86
32UB,Boston Borough Council,Elections,3103,Postages,3405,19.12.21 - 13.01.22 POST CHARGES,18/03/2022,233218,329.37,Revenue,Royal Mail,86
32UB,Boston Borough Council,Credit Control Unit,1013,Postages,3405,30.01.22 - 24.02.22 POST CHARGES,25/03/2022,233219,812.75,Revenue,Royal Mail,86
32UB,Boston Borough Council,Elections,3103,Postages,3405,30.01.22 - 24.02.22 POST CHARGES,25/03/2022,233219,347.2,Revenue,Royal Mail,86
32UB,Boston Borough Council,Recycling,3238,Printing And Stationery,3201,GARDEN WASTE ADVERT TO BE PLACED IN BOSTON,11/03/2022,233221,835,Revenue,Reach Publishing Services Ltd,13991
32UB,Boston Borough Council,Vehicle Holding Account,2206,Sfs Fixed Maintenance,3042,LT21 NDN CONTRACT MAINTENANCE VF97,25/03/2022,233225,1504.17,Revenue,Specialist Fleet Services Ltd,16163
32UB,Boston Borough Council,Vehicle Holding Account,2206,Sfs Fixed Maintenance,3042,GK20 UYN CONTRACT MAINTENANCE VF88,25/03/2022,233225,1614.08,Revenue,Specialist Fleet Services Ltd,16163
32UB,Boston Borough Council,Vehicle Holding Account,2206,Sfs Fixed Maintenance,3042,LS20 XDB CONTRACT MAINTENANCE VF87,25/03/2022,233225,1620.83,Revenue,Specialist Fleet Services Ltd,16163
32UB,Boston Borough Council,Vehicle Holding Account,2206,Sfs Fixed Maintenance,3042,VK70 XZT CONTRACT MAINTENANCE VF90,25/03/2022,233225,1829.17,Revenue,Specialist Fleet Services Ltd,16163
32UB,Boston Borough Council,Vehicle Holding Account,2206,Sfs Fixed Maintenance,3042,VK70 XZU CONTRACT MAINTENANCE VF91,25/03/2022,233225,1829.17,Revenue,Specialist Fleet Services Ltd,16163
32UB,Boston Borough Council,Vehicle Holding Account,2206,Sfs Fixed Maintenance,3042,VK70 XZV CONTRACT MAINTENANCE VF92,25/03/2022,233225,1829.17,Revenue,Specialist Fleet Services Ltd,16163
32UB,Boston Borough Council,Vehicle Holding Account,2206,Sfs Fixed Maintenance,3042,VK70 XZW CONTRACT MAINTENANCE VF93,25/03/2022,233225,1829.17,Revenue,Specialist Fleet Services Ltd,16163
32UB,Boston Borough Council,Vehicle Holding Account,2206,Sfs Fixed Maintenance,3042,VK70 XZX CONTRACT MAINTENANCE VF94,25/03/2022,233225,1829.17,Revenue,Specialist Fleet Services Ltd,16163
32UB,Boston Borough Council,Vehicle Holding Account,2206,Sfs Fixed Maintenance,3042,VK70 XZZ CONTRACT MAINTENANCE VF96,25/03/2022,233225,1829.17,Revenue,Specialist Fleet Services Ltd,16163
32UB,Boston Borough Council,Vehicle Holding Account,2206,Sfs Fixed Maintenance,3042,VX18 KFG CONTRACT MAINTENANCE VF66,25/03/2022,233225,1829.17,Revenue,Specialist Fleet Services Ltd,16163
32UB,Boston Borough Council,Vehicle Holding Account,2206,Sfs Fixed Maintenance,3042,VK70 XZY CONTRACT MAINTENANCE VF95,25/03/2022,233225,1829.17,Revenue,Specialist Fleet Services Ltd,16163
32UB,Boston Borough Council,Vehicle Holding Account,2206,Sfs Fixed Maintenance,3042,H4 BBC CONTRACT MAINTENANCE VF82,25/03/2022,233225,1913.58,Revenue,Specialist Fleet Services Ltd,16163
32UB,Boston Borough Council,Parking,3449,Professional Services,3301,CASHLESS PARKING FEES - FEB 22,18/03/2022,233228,325.92,Revenue,Chipside Ltd,10954
32UB,Boston Borough Council,Cctv,3206,Equipment Purchase,3001,2020 UPGRADE OF KIRTON CAMERA INSTALLATION,25/03/2022,233231,3981.56,Revenue,Videcom Security Limited,13418
32UB,Boston Borough Council,Development Management,3306,Agency Staff,1032,TOWN PLANNING CONSULTANCY 31.01.22-21.02,25/03/2022,233238,3192,Revenue,Gd Planning,16774
32UB,Boston Borough Council,Computer Costs,1503,Disaster Recovery,3429,DR HOSTING 2021-22,11/03/2022,233239,1478.24,Revenue,East Lindsey District Council,225
32UB,Boston Borough Council,Leisure Pool Services,3434,Resale Pool,3034,SPEEDO & ZOGGS JUNIOR SWIM GOGGLES,18/03/2022,233246,327.2,Revenue,J P Lennard Limited,56
32UB,Boston Borough Council,Leisure Pool Services,3434,Resale Pool,3034,"JPL SWIM FLOATS, WOGGLE, PULLBUOY",11/03/2022,233248,284.66,Revenue,J P Lennard Limited,56
32UB,Boston Borough Council,Leisure Pool Services,3434,Professional Services,3301,FITNESS CLASSES FEBRUARY 22,11/03/2022,233258,280,Revenue,Top Banana Fitness,16459
32UB,Boston Borough Council,Computer Costs,1503,Software Licences,3407,BBC CONTRIBUTION FOR SOFTCAT ALIENVAULT,18/03/2022,233265,14891.79,Revenue,Public Sector Partnership Services Ltd,16086
32UB,Boston Borough Council,Personnel & Payroll,1006,Professional Services,3301,01.04.21-30.09.21 PAYROLL SERVICES,11/03/2022,233266,10155.61,Revenue,North Kesteven District Council,814
32UB,Boston Borough Council,Office Cleaning,3203,Cleaning Materials,2080,CLEANING SUPPLIES,25/03/2022,233281,484.25,Revenue,Espo,31
32UB,Boston Borough Council,Legal Services,1402,Shared Services,3323,LEGAL FEES & LAND CHARGES JAN 22,18/03/2022,233282,6917.91,Revenue,Lincolnshire County Council,12322
32UB,Boston Borough Council,National Assistance Burials,3440,Transfer Payments,4900,FUNERAL COSTS,18/03/2022,233284,-44.4,Revenue,Carr Funeral Service,8815
32UB,Boston Borough Council,National Assistance Burials,3440,Transfer Payments,4900,PUBLIC HEATH FUNERAL,18/03/2022,233284,1700,Revenue,Carr Funeral Service,8815
32UB,Boston Borough Council,Welcome Back Fund,3248,Publicity,3513,BILLBOARD ADVERT FROM 1ST - 31ST MARCH,25/03/2022,233285,1000,Revenue,Radiant Media Limited,16340
32UB,Boston Borough Council,It Investment Programme,6201,Purchases,8005,21298 MYBOSTONUK SUBSITE,25/03/2022,233289,3518,Capital,Goss Interactive Ltd,17354
32UB,Boston Borough Council,Housing Advice & Homelessness,3241,Project Costs,3935,RENT 18.02.22-24.02.22,11/03/2022,233290,1125,Revenue,The New England Hotel,15731
32UB,Boston Borough Council,It Investment Programme,6201,Purchases,8005,21300 VISITBOSTON SUBSITE,25/03/2022,233292,3518,Capital,Goss Interactive Ltd,17354
32UB,Boston Borough Council,Housing Advice & Homelessness,3241,Project Costs,3935,SWEP ROOMS 18.02.22-22.02.22,11/03/2022,233293,450,Revenue,The New England Hotel,15731
32UB,Boston Borough Council,Housing Advice & Homelessness,3241,Project Costs,3935,RENT 18.02.22-24.02.22,11/03/2022,233294,2940,Revenue,The New England Hotel,15731
32UB,Boston Borough Council,Housing Advice & Homelessness,3241,Project Costs,3935,SECURITY 18.02.22-24.02.22,11/03/2022,233295,1176,Revenue,The New England Hotel,15731
32UB,Boston Borough Council,Housing Advice & Homelessness,3241,Project Costs,3935,SECURITY 25.03.22-03.03.22,18/03/2022,233296,1176,Revenue,The New England Hotel,15731
32UB,Boston Borough Council,Housing Advice & Homelessness,3241,Project Costs,3935,RENT 25.02.22-03.03.22,18/03/2022,233297,2940,Revenue,The New England Hotel,15731
32UB,Boston Borough Council,Housing Advice & Homelessness,3241,Project Costs,3935,RENT 25.02.22-03.03.22,18/03/2022,233298,945,Revenue,The New England Hotel,15731
32UB,Boston Borough Council,It Investment Programme,6201,Purchases,8005,21301 THINKBOSTON SUBSITE,25/03/2022,233299,2130,Capital,Goss Interactive Ltd,17354
32UB,Boston Borough Council,Bereavement,2401,Memorials Purchases,3028,"SUPPLY 1 NEW MEMORIAL TABLET, WITH INSCRIPTION",11/03/2022,233302,550,Revenue,William Kent (Memorials) Ltd,314
32UB,Boston Borough Council,Computer Costs,1503,Software Services,3426,BASIC SUPPORT COVERAGE VMWARE VCENTER SERVER ,25/03/2022,233304,5520.92,Revenue,Phoenix Software Ltd,644
32UB,Boston Borough Council,Computer Costs,1503,Software Services,3426,BASIC SUPPORT COVERAGE VMWARE VSPHERE 7 ENTER,25/03/2022,233304,13259.6,Revenue,Phoenix Software Ltd,644
32UB,Boston Borough Council,Towns Fund - Pe21,3426,Professional Services,3301,TOWNS FUND SUPPORT UP TO 31ST MARCH 2022,25/03/2022,233305,990,Revenue,Rose Regeneration Limited,14694
32UB,Boston Borough Council,Princess Royal Sports Arena,3452,Biomass Fuel,2093,WOOD CHIPS GREAT FEN RD 2/3/22,31/03/2022,233306,975,Revenue,Sdl Biomass Ltd,15677
32UB,Boston Borough Council,Building Mtc-Public Buildings,4402,Materials,3006,FAULTY INTRUDER SYSTEM CALL OUT 28/2/22,25/03/2022,233312,268,Revenue,Adt Fire And Security Plc,2
32UB,Boston Borough Council,Computer Costs,1503,Hardware Maintenance,3410,ESET PROTECT ENTRY ON-PREM (FORMALLY ESET ENDPOINT PROTECTION ADVANCED) 1 YEAR,18/03/2022,233314,1064,Revenue,Caretower Ltd,7823
32UB,Boston Borough Council,Members And Mayoral,3106,Training Courses,1108,CHARING SKILLS FOR CLLRS,18/03/2022,233322,3180,Revenue,Local Government Information Ltd,12407
32UB,Boston Borough Council,Office Cleaning,3203,Agency Staff,1032,CLEANERS X 2,18/03/2022,233323,407.66,Revenue,Workforce (Boston) Limited,11042
32UB,Boston Borough Council,Refuse Collection,3234,Agency Staff,1032,TEMP. STAFF W/E 06.03.22,18/03/2022,233327,4329.4,Revenue,Comensura Ltd,9671
32UB,Boston Borough Council,Grounds Maintenance,4401,Agency Staff,1032,TEMP. STAFF W/E 06.03.22,18/03/2022,233327,478.04,Revenue,Comensura Ltd,9671
32UB,Boston Borough Council,Welcome Back Fund,3248,Materials,3006,8 CROWD BARRIER COVER,11/03/2022,233328,396,Revenue,Monster Mesh Ltd,17494
32UB,Boston Borough Council,Recycling,3238,Plant Maintenance,2012,GRASS & REED CUT BOSTON WASTE 14/1/22,18/03/2022,233382,300,Revenue,Sg Services (Boston) Limited,8668
32UB,Boston Borough Council,Vehicle Holding Account,2206,Materials,3006,"HIRE OF MA14 SUY W/C 07/02/22, 14/02/22, 21/02",25/03/2022,233391,680,Revenue,Phil Haines Coaches Ltd,351
32UB,Boston Borough Council,Street Cleansing Service,3235,Fly Tipping Project,3325,"HIRE OF NK63 JJY W/C 07/02/21, 14/02, 21/02, ",25/03/2022,233392,400,Revenue,Phil Haines Coaches Ltd,351
32UB,Boston Borough Council,Building Mtc-Public Buildings,4402,Materials,3006,FLUME SERVICE GMLP,31/03/2022,233394,1750,Revenue,Poly Advisory Services Ltd,7221
32UB,Boston Borough Council,Building Mtc-Public Buildings,4402,Materials,3006,GLAZING,18/03/2022,233395,350,Revenue,Boston Trade Frames Ltd,14541
32UB,Boston Borough Council,Building Mtc-Public Buildings,4402,Materials,3006,GLAZING & APERTURES,18/03/2022,233396,863.14,Revenue,Boston Trade Frames Ltd,14541
32UB,Boston Borough Council,Building Mtc-Public Buildings,4402,Materials,3006,GENERAL MAINTENANCE BOSTON BUS STATION,18/03/2022,233397,577.25,Revenue,Vere Bros,219
32UB,Boston Borough Council,Building Mtc-Public Buildings,4402,Materials,3006,PILGRIM FATHERS 3.6M WIDE JACKSON GATE,25/03/2022,233398,1470,Revenue,Ingamells Ground-Works & Construction Ltd,11226
32UB,Boston Borough Council,Building Mtc-Public Buildings,4402,Materials,3006,CCTV FAILURE CALL OUT,18/03/2022,233399,350,Revenue,Safe Control Ltd,16367
32UB,Boston Borough Council,Bereavement,2401,Plant Maintenance,2012,TO ATTEND SITE AND CARRY OUT A SERVICE OF THE CREMATING EQUIPMENT . 28TH FEB AND 1ST MARCH 2022.,25/03/2022,233499,3689.56,Revenue,Matthews Environmental Solutions Limited,15719
32UB,Boston Borough Council,Leisure Pool Services,3434,Badges / Certificates,3010,SWIMMING AWARDS,31/03/2022,233500,523.1,Revenue,Swim England Trading Limited,950
32UB,Boston Borough Council,Leisure Pool Services,3434,Rental Of Phone System,3418,FIBRE INTER AND TELSTREAM LINE RENTALS,18/03/2022,233504,368,Revenue,Multidata Ltd,12625
32UB,Boston Borough Council,Leisure Pool Services,3434,Software Maintenance,3408,SCUBA SOFTWARE DUE 31.03.22 TO 31.03.23,25/03/2022,233521,12333.32,Revenue,Delta Computer Services,1599
32UB,Boston Borough Council,Finance,1502,Software Maintenance,3408,PROPRNT ACADEMY CLASS A 1/4/22-31/3/23,25/03/2022,233524,386.63,Revenue,Xl Print Software,2338
32UB,Boston Borough Council,Housing Benefits,2507,Software Maintenance,3408,PROPRNT ACADEMY CLASS A 1/4/22-31/3/23,25/03/2022,233524,463.95,Revenue,Xl Print Software,2338
32UB,Boston Borough Council,Local Taxation,2508,Software Maintenance,3408,PROPRNT ACADEMY CLASS A 1/4/22-31/3/23,25/03/2022,233524,927.9,Revenue,Xl Print Software,2338
32UB,Boston Borough Council,Parking,3449,Cash Collection & Counting,4621,CASH COLLECTIONS CARPARKS FEB 22,25/03/2022,233527,1088.98,Revenue,Kings Armoured Security Services Ltd,10472
32UB,Boston Borough Council,Housing Advice & Homelessness,3241,Project Costs,3935,BAND 6 MENTAL HEALTH PRACTITIONER,25/03/2022,233529,60470,Revenue,Lincs Partnership Nhs Foundation Trust,9376
32UB,Boston Borough Council,Finance,1502,Professional Services,3301,CONTRACT PRICE MAR 22,25/03/2022,233533,238097.42,Revenue,Public Sector Partnership Services Ltd,16086
32UB,Boston Borough Council,Internal Audit,1008,Internal Audit,4610,INTERNAL AUDIT QUARTER 4,18/03/2022,233534,18585,Revenue,Lincolnshire County Council,12322
32UB,Boston Borough Council,Housing Advice & Homelessness,3241,Project Costs,3935,ROOMS 04.03.22-10.03.22,18/03/2022,233541,945,Revenue,The New England Hotel,15731
32UB,Boston Borough Council,Housing Advice & Homelessness,3241,Project Costs,3935,RENT 04.03.22-10.03.22,18/03/2022,233542,2940,Revenue,The New England Hotel,15731
32UB,Boston Borough Council,Housing Advice & Homelessness,3241,Project Costs,3935,SECURITY 04.10.22-10.03.22,18/03/2022,233543,1176,Revenue,The New England Hotel,15731
32UB,Boston Borough Council,Municipal Buildings - Ext Org,1511,Agency Staff,1032,DWP SECURITY JAN 2022,18/03/2022,233545,6215.4,Revenue,National Westminister Bank Plc,13781
32UB,Boston Borough Council,Municipal Buildings - Ext Org,1511,Agency Staff,1032,DWP SECURITY DEC 21,18/03/2022,233547,6008.22,Revenue,National Westminister Bank Plc,13781
32UB,Boston Borough Council,Personnel & Payroll,1006,Health Safety & Welfare,1110,HEALTH CHECKS FEB 22,25/03/2022,233548,390,Revenue,Roodlane Medical Limited,10787
32UB,Boston Borough Council,Office Cleaning,3203,Agency Staff,1032,CLEANERS X2,18/03/2022,233559,737.39,Revenue,Workforce (Boston) Limited,11042
32UB,Boston Borough Council,Marketing And Communications,1003,Language Line,3908,TELEPHONE INTERPRETING 01.02.22-28.02.22,25/03/2022,233580,987.23,Revenue,Thebigword,7256
32UB,Boston Borough Council,Marketing And Communications,1003,Language Line,3908,TELEPHONE INTERPRETING 04.01.22-31.01.22,18/03/2022,233581,794.9,Revenue,Thebigword,7256
32UB,Boston Borough Council,Welcome Back Fund,3248,Professional Services,3301,DELIVERY WITH RETAILERS OF THE LANES,25/03/2022,233589,450,Revenue,Ovy Design Ltd,17409
32UB,Boston Borough Council,Welcome Back Fund,3248,Equipment Purchase,3001,08819 3M X 3M GALA SHADE PRO GAZEBO RED ,25/03/2022,233590,337.47,Revenue,Gala Tent Ltd,17474
32UB,Boston Borough Council,Welcome Back Fund,3248,Equipment Purchase,3001,09144 3M X 3M GALA SHADE PRO GAZEBO GREEN ,25/03/2022,233590,337.47,Revenue,Gala Tent Ltd,17474
32UB,Boston Borough Council,Welcome Back Fund,3248,Equipment Purchase,3001,08828 3M X 3M GALA SHADE PRO40 GAZEBO (RED),25/03/2022,233590,899.97,Revenue,Gala Tent Ltd,17474
32UB,Boston Borough Council,Welcome Back Fund,3248,Equipment Purchase,3001,09161 3M X 3M GALA SHADE PRO40 GAZEBO 9 (GREEN),25/03/2022,233590,899.97,Revenue,Gala Tent Ltd,17474
32UB,Boston Borough Council,Building Mtc-Public Buildings,4402,Materials,3006,PAT TEST - MUNICIPAL BUILDINGS,25/03/2022,233592,906,Revenue,Eiat Uk,9255
32UB,Boston Borough Council,Leisure Pool Services,3434,Chemicals,3009,CALC HYPO HTH DEDUST GRAN 45K,25/03/2022,233600,864.5,Revenue,Univar B.V.,12917
32UB,Boston Borough Council,Test And Trace Scheme,1016,Contract Change Notice (Psps),3327,CCN - 01.04.21-31.07.21 NEW BURDENS FUND,25/03/2022,233601,53231,Revenue,Public Sector Partnership Services Ltd,16086
32UB,Boston Borough Council,Housing Benefits,2507,Contract Change Notice (Psps),3327,CCN91,25/03/2022,233602,32824,Revenue,Public Sector Partnership Services Ltd,16086
32UB,Boston Borough Council,Housing Benefits,2507,Software Services,3426,01.04.22-31.03.23 SOFTWARE MAINTENANCE,25/03/2022,233603,37045.8,Revenue,Capita Software Services Limited,121
32UB,Boston Borough Council,Development Management,3306,Professional Services,3301,PROFESSIONAL FEES GMLC,25/03/2022,233604,75302.33,Revenue,Ymd Boon Limited,17562
32UB,Boston Borough Council,Transformation,1005,Professional Services,3301,SALARY COST 29.03.21-31.03.22,25/03/2022,233699,31815.57,Revenue,East Lindsey District Council,225
32UB,Boston Borough Council,Community Champions: La Fund,1019,Project Costs,3935,MULTILINGUAL MARKETING PROJECT,31/03/2022,233704,5000,Revenue,Pab Languages Centre,11529
32UB,Boston Borough Council,Vehicle Holding Account,2206,Materials,3006,VU66 NRK - RCV HIRE 03.03.22-04.03.22,31/03/2022,233709,600,Revenue,Euro Municipal Ltd,13250
32UB,Boston Borough Council,Vehicle Holding Account,2206,Materials,3006,NK66 LTE & VN63 UCM - 28.02.22-10.03.22,31/03/2022,233710,1630,Revenue,Euro Municipal Ltd,13250
32UB,Boston Borough Council,Community Safety,3205,P'Ship Pay & Conts To Schemes,3601,2021-22 CONT SAFEGUARDING CHILDREN,25/03/2022,233711,4010,Revenue,Lincolnshire County Council,12322
32UB,Boston Borough Council,Community Champions: La Fund,1019,Project Costs,3935,CULTURAL AWARENESS TRAINING,25/03/2022,233712,975,Revenue,Pab Languages Centre,11529
32UB,Boston Borough Council,Refuse Collection,3234,Agency Staff,1032,SUPPLY OF TEMPORARY STAFF W/E 13.03.22,31/03/2022,233724,4050.25,Revenue,Comensura Ltd,9671
32UB,Boston Borough Council,Grounds Maintenance,4401,Agency Staff,1032,SUPPLY OF TEMPORARY STAFF W/E 13.03.22,31/03/2022,233724,478.04,Revenue,Comensura Ltd,9671
32UB,Boston Borough Council,Refuse Collection,3234,Provisions / Purchases,3008,"20/20, BIO BLAST, DASH DANDY",31/03/2022,233725,381.96,Revenue,John Metcalfe,9151
32UB,Boston Borough Council,Vehicle Holding Account,2206,Sfs Payg,3043,INSPECTION/BRAKES - YR13 LKJ ,31/03/2022,233732,515.54,Revenue,Specialist Fleet Services Ltd,16163
32UB,Boston Borough Council,Vehicle Holding Account,2206,Sfs Payg,3043,REPLACEMENT BRAKE PADS YS18 CZE,31/03/2022,233733,389.5,Revenue,Specialist Fleet Services Ltd,16163
32UB,Boston Borough Council,Vehicle Holding Account,2206,Sfs Payg,3043,ANNUAL SERVICE/MOT/REPLACE REAR BRAKE PADS YO65 CHY,31/03/2022,233734,508.02,Revenue,Specialist Fleet Services Ltd,16163
32UB,Boston Borough Council,Registration Of Electors,3109,Postages,3405,RESPONSE PLUS SERVICE 29.01.22-26.02.22,31/03/2022,233749,339.84,Revenue,Royal Mail,86
32UB,Boston Borough Council,Welcome Back Fund,3248,Professional Services,3301,MARKET - 16.03.22-30.03.22,25/03/2022,233753,1400,Revenue,Mr Zeph Brown,17563
32UB,Boston Borough Council,Housing Benefits,2507,Software Services,3426,DEVELOPMENT FUND 2022-23,25/03/2022,233757,8393,Revenue,Capita Software Services Limited,121
32UB,Boston Borough Council,Housing Benefits,2507,Software Services,3426,01.04.22-31.03.23 TECHNICAL MAINTENANCE,25/03/2022,233758,1741.1,Revenue,Capita Software Services Limited,121
32UB,Boston Borough Council,Leisure Pool Services,3434,Plant Maintenance,2012,REPLACE VERTICAL FUEL STORE,31/03/2022,233760,2129.62,Revenue,Nerg,13707
32UB,Boston Borough Council,Computer Costs,1503,Peripherals & Consumables,3427,PRODUCT DESC:DURAGUARD ASSET LABELS PK100,31/03/2022,233761,331.2,Revenue,Seton Limited,369
32UB,Boston Borough Council,Computer Costs,1503,Software Maintenance,3408,PAYMENT PORTAL,25/03/2022,233763,490,Revenue,Capita Software Services Limited,121
32UB,Boston Borough Council,Computer Costs,1503,Software Maintenance,3408,CAPITA PAY360 PAYMENT SYSTEMS MAINTENANCE,25/03/2022,233764,13661.05,Revenue,Capita Software Services Limited,121
32UB,Boston Borough Council,Credit Control Unit,1013,Transaction Costs,4701,TRANSACTION CHARGES FEB 22,25/03/2022,233765,675.54,Revenue,Capita Software Services Limited,121
32UB,Boston Borough Council,Welcome Back Fund,3248,Professional Services,3301,MAINTAINANCE PACKAGE FOR 2016 MONOLITHS,25/03/2022,233767,2498,Revenue,Is Consultancy (Uk) Ltd T/A Is Group,17541
32UB,Boston Borough Council,Welcome Back Fund,3248,Professional Services,3301,VIDEO CONTENT TO SUPPORT THE REOPENING THE HIGH STREETS AND WELCOME BACK FUND,25/03/2022,233768,625,Revenue,Karl Bird,17475
32UB,Boston Borough Council,Towns Fund - Pe21,3426,Professional Services,3301,HIRE OF BOSTON UNITED FOR TOWN DEAL RE: VISIT,31/03/2022,233770,401,Revenue,Visit Lincoln Cic,13802
32UB,Boston Borough Council,Welcome Back Fund,3248,Professional Services,3301,ZSPR120 SPRINGBANK PICNIC TABLE 2M IN BROWN,25/03/2022,233781,576.05,Revenue,Trade & Diy Products Ltd,17466
32UB,Boston Borough Council,Welcome Back Fund,3248,Professional Services,3301,2 ZSPRING SPRINGBANK PICNIC TABLE 1.5M IN BROWN,25/03/2022,233781,888.57,Revenue,Trade & Diy Products Ltd,17466
32UB,Boston Borough Council,Welcome Back Fund,3248,Professional Services,3301,ZTANS TANSLEY WHEELCHAIR ACCESS PICNIC TABLE ,25/03/2022,233781,914.23,Revenue,Trade & Diy Products Ltd,17466
32UB,Boston Borough Council,Welcome Back Fund,3248,Equipment Purchase,3001,WEYBURN SEATS,25/03/2022,233787,18635,Revenue,Broxap Limited,377
32UB,Boston Borough Council,Building Mtc-Public Buildings,4402,Materials,3006,STREET LIGHTING MAINTENANCE QTR 31.03.22,25/03/2022,233789,2964,Revenue,Eon Uk Energy Services,8014
32UB,Boston Borough Council,Building Mtc-Public Buildings,4402,Materials,3006,TRAVELLERS CARAVAN PARK REPLACE LANTERNS,25/03/2022,233790,1300,Revenue,Eon Uk Energy Services,8014
32UB,Boston Borough Council,Building Mtc-Public Buildings,4402,Materials,3006,HOLLAND FEN STREET LIGHT,25/03/2022,233791,650,Revenue,Eon Uk Energy Services,8014
32UB,Boston Borough Council,Welcome Back Fund,3248,Professional Services,3301,ST10 - GREEN & WHITE TARP 7M X 11M,25/03/2022,233795,458.1,Revenue,Tarpaflex Ltd,17560
32UB,Boston Borough Council,Welcome Back Fund,3248,Professional Services,3301,ST10/RW - RED & WHITE TARP 7M X 11M,25/03/2022,233795,458.1,Revenue,Tarpaflex Ltd,17560
32UB,Boston Borough Council,Recycling,3238,Contract Change Notice (Psps),3327,CCN 21.02.22- END OF APRIL 22 GW SUPPORT,29/03/2022,233796,11037,Revenue,Public Sector Partnership Services Ltd,16086
32UB,Boston Borough Council,Welcome Back Fund,3248,Professional Services,3301,23.03.22-30.03.22 FACEPAING & BALLOONS,25/03/2022,233804,690,Revenue,Simone Martin,17220
32UB,Boston Borough Council,Welcome Back Fund,3248,Professional Services,3301,"BULBS, PLANTERS & MATERIALS FOR TOWN",25/03/2022,233806,2490,Revenue,Boston In Bloom Partnership,14189
32UB,Boston Borough Council,Welcome Back Fund,3248,Professional Services,3301,DEEP CLEAN TO CENTRAL PARK TOILETS 10.03,25/03/2022,233807,2448,Revenue,Rentokil,9472
32UB,Boston Borough Council,Parish Precepts,9003,Precepts,6500,2022-23 INSTALMENT 1 PARISH PRECEPT,25/03/2022,233809,4418.7,Precept,Algarkirk Parish Council,163
32UB,Boston Borough Council,Parish Precepts,9003,Precepts,6500,2022-23 INSTALMENT 1 PARISH PRECEPT,25/03/2022,233810,1837,Precept,Amber Hill Parish Council,5452
32UB,Boston Borough Council,Parish Precepts,9003,Precepts,6500,2022-23 INSTALMENT 1 PARISH PRECEPT,25/03/2022,233811,8750,Precept,Benington Parish Council,165
32UB,Boston Borough Council,Parish Precepts,9003,Precepts,6500,2022-23 INSTALMENT 1 PARISH PRECEPT,25/03/2022,233812,17750,Precept,Bicker Parish Council,166
32UB,Boston Borough Council,Parish Precepts,9003,Precepts,6500,2022-23 INSTALMENT 1 PARISH PRECEPT,25/03/2022,233813,15000,Precept,Butterwick Parish Council,167
32UB,Boston Borough Council,Parish Precepts,9003,Precepts,6500,2022-23 INSTALMENT 1 PARISH PRECEPT,25/03/2022,233814,15624.5,Precept,Fishtoft Parish Council,168
32UB,Boston Borough Council,Parish Precepts,9003,Precepts,6500,2022-23 INSTALMENT 1 PARISH PRECEPT,25/03/2022,233815,6615,Precept,Fosdyke Parish Council,169
32UB,Boston Borough Council,Parish Precepts,9003,Precepts,6500,2022-23 INSTALMENT 1 PARISH PRECEPT,25/03/2022,233816,11440.05,Precept,Frampton Parish Council,170
32UB,Boston Borough Council,Parish Precepts,9003,Precepts,6500,2022-23 INSTALMENT 1 PARISH PRECEPT,25/03/2022,233817,16250,Precept,Freiston Parish Council,171
32UB,Boston Borough Council,Parish Precepts,9003,Precepts,6500,2022-23 INSTALMENT 1 PARISH PRECEPT,25/03/2022,233818,12500,Precept,Wrangle Parish Council,178
32UB,Boston Borough Council,Parish Precepts,9003,Precepts,6500,2022-23 INSTALMENT 1 PARISH PRECEPT,25/03/2022,233819,5545.75,Precept,Wigtoft Parish Council,6209
32UB,Boston Borough Council,Parish Precepts,9003,Precepts,6500,2022-23 INSTALMENT 1 PARISH PRECEPT,25/03/2022,233820,21820,Precept,Swineshead Parish Council,177
32UB,Boston Borough Council,Parish Precepts,9003,Precepts,6500,2022-23 INSTALMENT 1 PARISH PRECEPT,25/03/2022,233821,22500,Precept,Old Leake Parish Council,175
32UB,Boston Borough Council,Parish Precepts,9003,Precepts,6500,2022-23 INSTALMENT 1 PARISH PRECEPT,25/03/2022,233822,7500,Precept,Leverton Parish Council,174
32UB,Boston Borough Council,Parish Precepts,9003,Precepts,6500,2022-23 INSTALMENT 1 PARISH PRECEPT,25/03/2022,233823,42500,Precept,Kirton Parish Council,173
32UB,Boston Borough Council,Parish Precepts,9003,Precepts,6500,2022-23 INSTALMENT 1 PARISH PRECEPT,25/03/2022,233824,1625,Precept,Holland Fen With Brothertoft Parish Council,172
32UB,Boston Borough Council,Parish Precepts,9003,Precepts,6500,2022-23 INSTALMENT 1 PARISH PRECEPT,25/03/2022,233825,14883.75,Precept,Sutterton Parish Council,176
32UB,Boston Borough Council,Parish Precepts,9003,Precepts,6500,2022-23 INSTALMENT 1 PARISH PRECEPT,25/03/2022,233826,28162.5,Precept,Wyberton Parish Council,179
32UB,Boston Borough Council,Non Distributed Costs,3502,Superann Pension Incrs Act,1007,PENSION RECHARGE ADDED YEARS - MARCH 22,25/03/2022,233845,5608.72,Revenue,Lincolnshire County Council Pension Fund,220
32UB,Boston Borough Council,Property Services,1403,Professional Services,3301,ASSET EVALUATION 20.21,25/03/2022,233846,1650,Revenue,Kier Business Services Ltd,13077
32UB,Boston Borough Council,Municipal Buildings - Ext Org,1511,Agency Staff,1032,DWP SECURITY FEB 2022,25/03/2022,233852,6215.4,Revenue,National Westminister Bank Plc,13781
32UB,Boston Borough Council,Welcome Back Fund,3248,Professional Services,3301,A3 FOLDED TO A6 MAPS,25/03/2022,233853,2499,Revenue,Chris Cook Print And Office Supplies,22
32UB,Boston Borough Council,Welcome Back Fund,3248,Professional Services,3301,PHOTOGRAPHY - REOPENING HIGH STREET,25/03/2022,233854,2400,Revenue,Nathan Bryant,17458
32UB,Boston Borough Council,Welcome Back Fund,3248,Professional Services,3301,STREET PERFORMING - 21.03.22,25/03/2022,233855,300,Revenue,Mr George Wright,17561
32UB,Boston Borough Council,Welcome Back Fund,3248,Professional Services,3301,TO PROVIDE CONSULTATION SERVICES,25/03/2022,233856,1500,Revenue,Ovy Design Ltd,17409
32UB,Boston Borough Council,Welcome Back Fund,3248,Equipment Purchase,3001,COTTON JUTE TOTE BAG FULL COLOUR 1 SIDE COLOUR,25/03/2022,233857,2232,Revenue,Inform Printed Solutions Ltd,17488
32UB,Boston Borough Council,Housing Advice & Homelessness,3241,Project Costs,3935,22.12.21-25.03.22 VARIOUS ACCOMMODATION,25/03/2022,233858,12520,Revenue,The Lord Grey Hotel,14612
32UB,Boston Borough Council,Housing Advice & Homelessness,3241,Project Costs,3935,25.03.22-01.04.22 VARIOUS ACCOMMODATION,25/03/2022,233859,1225,Revenue,The Lord Grey Hotel,14612
32UB,Boston Borough Council,Bed & Breakfast,3222,Bed And Breakfast Accom Fees,3306,02.03.22-11.03.22 ACCOMMODATION,25/03/2022,233860,315,Revenue,Beeston Lodge Hotel,7822
32UB,Boston Borough Council,Development Management,3306,Agency Staff,1032,DM SERVICES FEBRUARY 2022,31/03/2022,233865,6750,Revenue,Capita Property & Infrastructure Ltd,13782
32UB,Boston Borough Council,Land Charges,3232,Lcc Search Fees,3984,LOCAL LAND SEARCH FEES MARCH 2022,31/03/2022,233870,865.3,Revenue,Lincolnshire County Council,12322
32UB,Boston Borough Council,Refuse Collection,3234,Agency Staff,1032,SUPPLY OF TEMPORARY STAFF W/E 20.03.22,31/03/2022,233877,4735.78,Revenue,Comensura Ltd,9671
32UB,Boston Borough Council,Grounds Maintenance,4401,Agency Staff,1032,SUPPLY OF TEMPORARY STAFF W/E 20.03.22,31/03/2022,233877,374.68,Revenue,Comensura Ltd,9671
32UB,Boston Borough Council,Nndr Collection And Admin,2509,Professional Services,3301,RV FINDER - KIRTON & EURO PARTS FINDER,25/03/2022,233878,1175,Revenue,Inform Cpi Limited,11570
32UB,Boston Borough Council,Nndr Collection And Admin,2509,Professional Services,3301,RV FINDER - WIGTOFT & BOSTON,25/03/2022,233879,455,Revenue,Inform Cpi Limited,11570
32UB,Boston Borough Council,Nndr Collection And Admin,2509,Professional Services,3301,RV FINDER - WRANGE & BOSTON,31/03/2022,233880,1020,Revenue,Inform Cpi Limited,11570
32UB,Boston Borough Council,Central Training & Recruitment,2001,Recruitment Advertising,1101,HR RECHARGES,29/03/2022,233999,3332.36,Revenue,Public Sector Partnership Services Ltd,16086
32UB,Boston Borough Council,Photocopiers,2503,Plant Maintenance,2012,QTRLY RENTAL 04.03.22-03.06.22,31/03/2022,234014,1407.41,Revenue,Capita Software Services Limited,121
32UB,Boston Borough Council,Computer Costs,1503,Mobile Phones,3406,BILL CORRECTION - 691552018,31/03/2022,234021,-881.38,Revenue,Vodafone,2176
32UB,Boston Borough Council,Computer Costs,1503,Mobile Phones,3406,BILL CORRECTION - 691552018,31/03/2022,234022,-150.43,Revenue,Vodafone,2176
32UB,Boston Borough Council,Environmental Protection,3216,Mobile Phones,3406,BILL CORRECTION - 691552018,31/03/2022,234023,-50.76,Revenue,Vodafone,2176
32UB,Boston Borough Council,"Food, Health & Safety Enforce",3220,Mobile Phones,3406,BILL CORRECTION - 691552018,31/03/2022,234023,-101.52,Revenue,Vodafone,2176
32UB,Boston Borough Council,Assistant Directors,1002,Equipment Purchase,3001,MOBILE PHONES,31/03/2022,234031,648,Revenue,Vodafone Limited (Corporate),667
32UB,Boston Borough Council,Customer Services,1505,Equipment Purchase,3001,MOBILE PHONES,31/03/2022,234031,344.83,Revenue,Vodafone Limited (Corporate),667
32UB,Boston Borough Council,Housing Services,2203,Equipment Purchase,3001,MOBILE PHONES,31/03/2022,234031,344.83,Revenue,Vodafone Limited (Corporate),667
32UB,Boston Borough Council,Development Management,3306,Equipment Purchase,3001,MOBILE PHONES,31/03/2022,234031,689.66,Revenue,Vodafone Limited (Corporate),667
32UB,Boston Borough Council,Leisure Pool Services,3434,Equipment Purchase,3001,MOBILE PHONES,31/03/2022,234031,689.66,Revenue,Vodafone Limited (Corporate),667
32UB,Boston Borough Council,Grants General,3455,Equipment Purchase,3001,MOBILE PHONES,31/03/2022,234031,344.83,Revenue,Vodafone Limited (Corporate),667
32UB,Boston Borough Council,Economic Development,3423,Equipment Purchase,3001,MOBILE PHONES,31/03/2022,234032,344.83,Revenue,Vodafone Limited (Corporate),667
32UB,Boston Borough Council,It Investment Programme,6201,Purchases,8005,MOBILE PHONES,31/03/2022,234032,4860,Capital,Vodafone Limited (Corporate),667
32UB,Boston Borough Council,Credit Control Unit,1013,Recovery Costs,4617,FEES PAID DIRECT & VAT ON COUNCIL TAX,31/03/2022,234054,350,Revenue,Bristow Sutor,8383
32UB,Boston Borough Council,Refuse Collection,3234,Agency Staff,1032,SUPPLY OF TEMPORARY STAFF W/E 27.03.22,31/03/2022,234078,4081.28,Revenue,Comensura Ltd,9671
32UB,Boston Borough Council,Grounds Maintenance,4401,Agency Staff,1032,SUPPLY OF TEMPORARY STAFF W/E 27.03.22,31/03/2022,234078,381.14,Revenue,Comensura Ltd,9671
32UB,Boston Borough Council,Housing Advice & Homelessness,3241,Project Costs,3935,REPAIRS TO 22 CARLTON ROAD,31/03/2022,234098,7500,Revenue,Nicolson Property Limited,17598
32UB,Boston Borough Council,"Arts, Heritage & Tourism",3407,Event Costs,3925,CONTRIBUTION TO INSTALLATION OF PILGRIM,31/03/2022,234109,3500,Revenue,University Of Lincoln,311
32UB,Boston Borough Council,Bereavement,2401,Medical Assessors Fees,3302,MEDICAL REFEREE 17 SIGNINGS MARCH 2022,31/03/2022,234113,314.5,Revenue,Sutterton Surgery - Dr Stephen Hughes,10600
32UB,Boston Borough Council,Bereavement,2401,Medical Assessors Fees,3302,MEDICAL REFEREE 69 SIGNINGS MARCH 2022,31/03/2022,234118,1276.5,Revenue,Dr Andrew Doddrell,10098
32UB,Boston Borough Council,Corporate & Democratic Core,3102,Bank Charges,3510,ACADEMY MANAGED SERVICES - CAPITA DD,01/03/2022,73331,3839.57,Revenue,Capita Software Services Limited,
32UB,Boston Borough Council,Council Tax Summary Account,5000,Ct Requirement Lpa,7802,LINCS POLICE PRCEPT,04/03/2022,73355,526214.02,Precept,Lincs Police,
32UB,Boston Borough Council,Internal Communications,2504,Rental Of Phone System,3418,BT DD - RECURRING CHARGES FEB 2022 - VP 79824270,07/03/2022,73361,301.1,Revenue,BT plc,
32UB,Boston Borough Council,Leisure Pool Services,3434,Provisions / Purchases,3008,BOOKER DD RE GMLC - INVOICE 3546629,15/03/2022,73430,427.64,Revenue,Bookers,
32UB,Boston Borough Council,Leisure Pool Services,3434,Provisions / Purchases,3008,BOOKER DD RE GMLC - INVOICE 3546771,15/03/2022,73430,463.32,Revenue,Bookers,
32UB,Boston Borough Council,Hackney Carriage Licences,3233,Hackney Carriges Expenses,3521,LAND CHARGES  10 CHECKS ,16/03/2022,73462,400,Revenue,DBS,
32UB,Boston Borough Council,Economic Development,3423,Professional Services,3301,PP JSSC LTD WASH PROJECT,18/03/2022,73496,8000,Revenue,JSSC LTD,
32UB,Boston Borough Council,Bereavement,2401,Gas,2022,GAS - CREM - 31.12.21-31.01.22,18/03/2022,73500,1607.61,Revenue,ESPO,
32UB,Boston Borough Council,Municipal Buildings,2404,Gas,2022,GAS - MUNICIPAL BUILDINGS - 31.12.21-31.01.22,18/03/2022,73500,831.99,Revenue,ESPO,
32UB,Boston Borough Council,"Arts, Heritage & Tourism",3407,Gas,2022,GAS - GUILDHALL - 31.12.21-31.01.22,18/03/2022,73500,670.44,Revenue,ESPO,
32UB,Boston Borough Council,Leisure Pool Services,3434,Gas,2022,GAS - GMLC - 31.12.21-31.01.22,18/03/2022,73500,3827.88,Revenue,ESPO,
32UB,Boston Borough Council,Non Serv Relate G'Ment Grants,9009,Grant Income,104,DLUHC - BRRG 2021.22 CLAWBACK INVOICE PAID BY PP,08/03/2022,73505,6185071,Precept,BRRG,
32UB,Boston Borough Council,Corporate & Democratic Core,3102,Bank Charges,3510,BOTTOMLINE DD RE BACS MONTHLY AGREEMENT,21/03/2022,73509,700.52,Revenue,Bottomline Technologies,
32UB,Boston Borough Council,Nndr,9006,Business Rates Retention,4006,LINCS CC DD RE B RATES TARIFFS 2021/22,21/03/2022,73510,411255,Precept,Lincolnshire County Council,
32UB,Boston Borough Council,Nndr Control Account,5103,Central Government Share,7264,BRR CENTRAL SHARE 2021.22,21/03/2022,73515,820289,Precept,DCLG,
32UB,Boston Borough Council,Council Tax Summary Account,5000,Ct Requirement Lcc,7801,LCC PRECEPT 2021.22,22/03/2022,73521,2696234.9,Precept,Lincolnshire County Council,
32UB,Boston Borough Council,Vehicle Holding Account,2206,Fuel Transport,2201,FUEL TO 6/3,23/03/2022,73531,731.88,Revenue,Fuelcard Services,
32UB,Boston Borough Council,Vehicle Holding Account,2206,Fuel Transport,2201,FUEL TO 6/3 NK66 LTE,23/03/2022,73532,362.08,Revenue,Fuelcard Services,
32UB,Boston Borough Council,Vehicle Holding Account,2206,Fuel Transport,2201,FUEL TO 6/3,23/03/2022,73532,2368.95,Revenue,Fuelcard Services,
32UB,Boston Borough Council,Bereavement,2401,Electricity,2021,ROBIN HOODS WALK CREM - 01.02.22-28.02.22,25/03/2022,73554,623.82,Revenue,Total Gas & Power,
32UB,Boston Borough Council,Municipal Buildings,2404,Electricity,2021,MB ACCOUNT 3004800128- 01.02.22-28.02.22,25/03/2022,73554,1133.37,Revenue,Total Gas & Power,
32UB,Boston Borough Council,Municipal Buildings,2404,Electricity,2021,MB ACCOUNT 3005069232 - 01.02.22-28.02.22,25/03/2022,73554,3315.64,Revenue,Total Gas & Power,
32UB,Boston Borough Council,Depot,2405,Electricity,2021,ST JOHNS RD LORRY PARK - 01.02.22-28.02.22,25/03/2022,73554,554.86,Revenue,Total Gas & Power,
32UB,Boston Borough Council,Redstone Caravan Site,3225,Electricity,2021,REDSTONE IND ESTATE - 01.02.22-28.02.22,25/03/2022,73554,3991.22,Revenue,Total Gas & Power,
32UB,Boston Borough Council,Housing Advice & Homelessness,3241,Electricity,2021,TF FLAT 2 LEIC SQ - 01.02.22-28.02.22,25/03/2022,73554,456.22,Revenue,Total Gas & Power,
32UB,Boston Borough Council,Leisure Pool Services,3434,Electricity,2021,GMLC - 01.02.22-28.02.22,25/03/2022,73554,5488.97,Revenue,Total Gas & Power,
32UB,Boston Borough Council,Footway Lighting & Mtc,3447,Electricity,2021,FOOTWAY LIGHTING - 01.02.22-28.02.22,25/03/2022,73554,3351.53,Revenue,Total Gas & Power,
32UB,Boston Borough Council,Parking,3449,Electricity,2021,CAR PARK LIGHTING TICKET MACHINES - 01.02.22-28.02.22,25/03/2022,73554,705.03,Revenue,Total Gas & Power,
32UB,Boston Borough Council,Princess Royal Sports Arena,3452,Electricity,2021,PRSA - 01.02.22-28.02.22,25/03/2022,73554,7144.35,Revenue,Total Gas & Power,
32UB,Boston Borough Council,Internal Communications,2504,Rental Of Phone System,3418,FOEHN DD'S,25/03/2022,73557,2438.43,Revenue,Foehn,
32UB,Boston Borough Council,Corporate & Democratic Core,3102,Bank Charges,3510,ACADEMY MANAGED SERVICES - CAPITA DD,29/03/2022,73584,3584.82,Revenue,Capita Software Services Limited,
32UB,Boston Borough Council,"Arts, Heritage & Tourism",3407,Water Rates,2050,GUILDHALL - 04.12.21-03.03.22,21/03/2022,73594,414.52,Revenue,Anglian Water,
32UB,Boston Borough Council,Towns Fund - Pe21,3426,Professional Services,3301,PP HERITAGE LINCOLNSHIRE,18/03/2022,73598,56666.67,Revenue,Heritage Lincolnshire,
32UB,Boston Borough Council,Vehicle Holding Account,2206,Fuel Transport,2201,FUEL TO 13/3,29/03/2022,73601,841.33,Revenue,Fuelcard Services,
32UB,Boston Borough Council,Vehicle Holding Account,2206,Fuel Transport,2201,FUEL TO 13/3 VN62 UCM,29/03/2022,73602,527.72,Revenue,Fuelcard Services,
32UB,Boston Borough Council,Vehicle Holding Account,2206,Fuel Transport,2201,FUEL TO 13/3,29/03/2022,73602,4402.83,Revenue,Fuelcard Services,
32UB,Boston Borough Council,Loan Interest,9010,Interest Payments,6301,PWLB LOAN INTEREST,29/03/2022,73604,15794.1,Revenue,Public Works Loan Board,
32UB,Boston Borough Council,Vehicle Holding Account,2206,Fuel Transport,2201,FUEL TO 20.3,30/03/2022,73611,434.16,Revenue,Fuelcard Services,
32UB,Boston Borough Council,Vehicle Holding Account,2206,Fuel Transport,2201,FUEL TO 20/3,30/03/2022,73611,5310.39,Revenue,Fuelcard Services,
32UB,Boston Borough Council,Vehicle Holding Account,2206,Fuel Transport,2201,FUEL TO 27/3,30/03/2022,73615,405.84,Revenue,Fuelcard Services,
32UB,Boston Borough Council,Vehicle Holding Account,2206,Fuel Transport,2201,FUEL TO 27/3,30/03/2022,73616,5285.64,Revenue,Fuelcard Services,
32UB,Boston Borough Council,Legal Services,1402,Subscriptions,3600,LEXIS NEXIS DD - REFERENCE DI055369M,31/03/2022,73620,795.83,Revenue,Lexis Nexis Butterworths,
32UB,Boston Borough Council,Local Taxation,2508,Postages,3405,IMAIL - COUNCIL TAX - 21.02.22-25.02.22,21/03/2022,73627,1266.21,Revenue,UK Mail,
32UB,Boston Borough Council,Test And Trace Scheme,1016,Contract Change Notice (Psps),3327,PP PSPSL INVOICE,31/03/2022,73643,77408.37,Revenue,Public Sector Partnership Services Ltd,
32UB,Boston Borough Council,Computer Costs,1503,Software Services,3426,SOFTWARE,16/03/2022,73651,295.75,Revenue,,
32UB,Boston Borough Council,Vehicle Holding Account,2206,Materials,3006,TAX YO65 CHY,16/03/2022,73651,277.5,Revenue,DVLA,
32UB,Boston Borough Council,Depot,2405,Equipment Purchase,3001,BOOK CASE AND CABINET,16/03/2022,73651,475.49,Revenue,,
32UB,Boston Borough Council,Bed & Breakfast,3222,Bed And Breakfast Accom Fees,3306,ACCOMMODATION FOR HOMELESS PERSON,16/03/2022,73651,384.98,Revenue,,
32UB,Boston Borough Council,Bed & Breakfast,3222,Bed And Breakfast Accom Fees,3306,HOMELESS ACCOMMODATION,16/03/2022,73651,414.72,Revenue,,
32UB,Boston Borough Council,Refuse Collection,3234,Clothing,3150,"GLOVES, TROUSERS, COAT, SWEATSHIRT",16/03/2022,73651,726.45,Revenue,,
32UB,Boston Borough Council,Street Cleansing Service,3235,Clothing,3150,TROUSERS AND SWEATSHIRTS,16/03/2022,73651,453.3,Revenue,,
32UB,Boston Borough Council,Recycling,3238,Clothing,3150,"SWEATSHIRTS, T SHIRTS, TROUSERS, GLOVES, MASKS,",16/03/2022,73651,328.71,Revenue,,
32UB,Boston Borough Council,Recycling,3238,Clothing,3150,"GLOVES, TROUSERS, SWEATSHIRT, JACKET, WAISTCOAT",16/03/2022,73651,616.73,Revenue,,
32UB,Boston Borough Council,Housing Advice & Homelessness,3241,Dclg Homelessness Grant,3613,RENTAL FOR HOMELESS PERSON,16/03/2022,73651,351.23,Revenue,,
32UB,Boston Borough Council,Welcome Back Fund,3248,Materials,3006,BUNTING FOR THE MARKETS,16/03/2022,73651,467.5,Revenue,,
32UB,Boston Borough Council,Welcome Back Fund,3248,Provisions / Purchases,3008,PAINT,16/03/2022,73651,877.5,Revenue,,
32UB,Boston Borough Council,Markets,3424,Clothing,3150,"SWEATSHIRTS, T SHIRTS, TROUSERS, GLOVES, MASKS,",16/03/2022,73651,350.78,Revenue,,
32UB,Boston Borough Council,Leisure Pool Services,3434,Miscellaneous,3905,SOUND SYSTEM/SPEAKERS FOR SPIN,16/03/2022,73651,265.38,Revenue,,
32UB,Boston Borough Council,Leisure Pool Services,3434,Badges / Certificates,3010,SWIM BADGES/CERTIFICATES,16/03/2022,73651,321.6,Revenue,,
32UB,Boston Borough Council,Leisure Pool Services,3434,Printing And Stationery,3201,PRINTER INK/THERMOMETERS,16/03/2022,73651,474.51,Revenue,,
32UB,Boston Borough Council,Community Testing Centre,3516,Equipment Purchase,3001,VAN HIRE,16/03/2022,73651,535.83,Revenue,,
32UB,Boston Borough Council,Grounds Maintenance,4401,Materials,3006,WEEDKILLER,16/03/2022,73651,359.8,Revenue,,
32UB,Boston Borough Council,Grounds Maintenance,4401,Clothing,3150,JACKETS,16/03/2022,73651,425.5,Revenue,,
32UB,Boston Borough Council,Nndr Control Account,5103,Transitional Protection Paymts,7650,DCLG RSG NNDR3 RETURN 2021.22,30/03/2022,73760,518987,Precept,DCLG,
32UB,Boston Borough Council,Vehicle Holding Account,2206,Fuel Transport,2201,FUEL TO 31/3/22,31/03/2022,73772,344.55,Revenue,Fuelcard Services,
32UB,Boston Borough Council,Vehicle Holding Account,2206,Fuel Transport,2201,FUEL TO 31/03/2022,31/03/2022,73775,3478.01,Revenue,Fuelcard Services,
